bitfinex-derivatives/quotes_BTCF0:USTF0_20240814
["timestamp","ask_amount","ask_price","bid_price","bid_amount"]
[1723641358732,0.3608,60743.0,60728.0,0.3608]
[1723641358918,0.3608,60736.0,60728.0,0.44309]
[1723641359241,0.00024686,60737.0,60736.0,0.08228]
[1723641359526,0.00024686,60737.0,60736.0,0.1209]
[1723641359718,0.443059,60752.0,60736.0,0.1209]
[1723641359923,0.44331686,60743.0,60736.0,0.1209]
[1723641360228,0.00024686,60743.0,60742.0,0.3608]
[1723641360524,0.082271,60742.0,60734.0,0.3608]
[1723641360828,0.00024686,60743.0,60734.0,0.3608]
[1723641361027,0.082279,60737.0,60734.0,0.3608]
[1723641361332,0.082279,60737.0,60724.0,0.58353088]
[1723641361333,0.3608,60736.0,60725.0,0.08177453]
[1723641361530,0.00811044,60743.0,60733.0,0.3608]
[1723641361829,0.00811044,60743.0,60724.0,0.4846]
[1723641361830,0.3608,60739.0,60729.0,0.082289]
[1723641362031,0.3608,60739.0,60726.0,0.09002286]
[1723641362222,0.3608,60737.0,60730.0,0.082286]
[1723641362420,0.082282,60735.0,60726.0,0.16406753]
[1723641362622,0.3608,60737.0,60725.0,0.08177453]
[1723641362823,0.082294,60725.0,60724.0,0.4846]
[1723641363224,0.164588,60725.0,60724.0,0.3608]
[1723641363427,0.082309,60714.0,60713.0,0.44257453]
[1723641363727,0.082312,60712.0,60707.0,0.1285]
[1723641364132,0.082312,60712.0,60704.0,0.1213]
[1723641364530,0.082312,60712.0,60698.0,0.3608]
[1723641364531,0.89416,60712.0,60698.0,0.3608]
[1723641364829,0.89416,60712.0,60697.0,0.21027453]
[1723641364830,0.3608,60702.0,60694.0,0.3608]
[1723641365025,0.082332,60698.0,60694.0,0.3608]
[1723641365222,0.3608,60695.0,60685.0,0.3608]
[1723641365421,0.3608,60695.0,60678.0,0.3608]
[1723641365422,0.3608,60689.0,60678.0,0.3608]
[1723641365623,0.00013665,60688.0,60678.0,0.3608]
[1723641365822,0.082355,60681.0,60678.0,0.3608]
[1723641366025,0.3554,60681.0,60671.0,0.3608]
[1723641366223,0.3554,60681.0,60651.0,0.15225216]
[1723641366224,0.437765,60673.0,60661.0,0.3608]
[1723641366425,0.08238,60663.0,60661.0,0.3608]
[1723641366633,0.79224537,60667.0,60661.0,0.3608]
[1723641366634,0.00152,60667.0,60661.0,0.3608]
[1723641367030,0.082388,60657.0,60649.0,0.3608]
[1723641367231,0.7162,60650.0,60639.0,0.3608]
[1723641367432,0.7162,60640.0,60624.0,0.3608]
[1723641367637,0.7162,60640.0,60630.0,0.3608]
[1723641367638,0.3608,60640.0,60630.0,0.3608]
[1723641367831,0.17506433,60656.0,60643.0,0.082405]
[1723641368034,0.17506433,60656.0,60652.0,0.3608]
[1723641368333,0.3608,60669.0,60625.0,0.20233]
[1723641368334,0.00814282,60675.0,60655.0,0.3554]
[1723641368538,0.00814282,60675.0,60668.0,0.3608]
[1723641368723,0.3608,60688.0,60674.0,0.3608]
[1723641369135,0.3608,60688.0,60668.0,0.3608]
[1723641369434,0.3608,60680.0,60668.0,0.3608]
[1723641369631,0.3554,60677.0,60668.0,0.3608]
[1723641369823,0.0001768,60679.0,60668.0,0.3608]
[1723641369824,0.0001768,60679.0,60669.0,0.08237]
[1723641370138,0.0001768,60679.0,60678.0,0.3608]
[1723641371736,0.00024729,60685.0,60678.0,0.9739]
[1723641372032,0.776,60706.0,60684.0,0.3608]
[1723641372235,0.0823,60721.0,60678.0,0.9739]
[1723641372236,0.3608,60716.0,60702.0,0.082325]
[1723641372428,0.082313,60712.0,60691.0,0.3608]
[1723641372628,0.3608,60706.0,60696.0,0.3608]
[1723641373032,0.082332,60698.0,60696.0,0.3608]
[1723641373237,0.3608,60706.0,60696.0,0.3608]
[1723641373434,0.082332,60698.0,60696.0,0.3608]
[1723641374039,0.49424,60697.0,60696.0,0.3608]
[1723641374426,0.89428,60697.0,60696.0,0.3608]
[1723641375133,0.89428,60697.0,60695.0,0.00024707]
[1723641375331,0.3608,60706.0,60695.0,0.08258207]
[1723641375528,0.3608,60706.0,60696.0,0.3608]
[1723641375738,0.00024707,60707.0,60704.0,0.3608]
[1723641375938,0.3608,60718.0,60705.0,0.1179]
[1723641376333,0.443113,60712.0,60704.0,0.3608]
[1723641376544,0.3608,60718.0,60704.0,0.3608]
[1723641376842,0.3608,60712.0,60704.0,0.3608]
[1723641377045,0.3608,60726.0,60711.0,0.3608]
[1723641377335,0.3608,60734.0,60719.0,0.3608]
[1723641377546,0.3608,60734.0,60725.0,0.3608]
[1723641378144,0.0823,60722.0,60720.0,0.00024707]
[1723641378631,0.49408,60721.0,60710.0,0.3608]
[1723641378833,0.7608,60722.0,60710.0,0.3608]
[1723641378834,0.36232,60722.0,60710.0,0.3608]
[1723641379240,0.00152,60722.0,60710.0,0.3608]
[1723641379539,0.0823,60721.0,60710.0,0.3608]
[1723641379937,0.0823,60721.0,60710.0,0.36104707]
[1723641380443,0.082302,60720.0,60710.0,0.36104707]
[1723641380638,0.00024707,60722.0,60710.0,0.36104707]
[1723641381142,0.082314,60711.0,60710.0,0.00024707]
[1723641381440,0.3608,60713.0,60710.0,0.00024707]
[1723641381845,0.00024707,60722.0,60712.0,0.3608]
[1723641382032,0.00024707,60722.0,60721.0,0.3608]
[1723641383541,0.082273,60741.0,60727.0,0.082292]
[1723641383733,0.082273,60741.0,60721.0,1.25484]
[1723641383734,0.082273,60741.0,60736.0,0.3608]
[1723641383934,0.3608,60744.0,60736.0,0.3608]
[1723641384132,0.3608,60744.0,60743.0,0.3608]
[1723641384133,0.00812937,60744.0,60743.0,0.3608]
[1723641384335,0.3608,60758.0,60743.0,0.3608]
[1723641384743,0.3608,60758.0,60750.0,0.3608]
[1723641384744,0.00024707,60757.0,60750.0,0.3608]
[1723641384937,0.00024707,60757.0,60756.0,0.3608]
[1723641386433,0.00024707,60757.0,60756.0,0.443053]
[1723641386637,0.00024707,60757.0,60756.0,0.936813]
[1723641387242,0.082235,60770.0,60758.0,0.082249]
[1723641387532,0.3608,60771.0,60759.0,0.1279]
[1723641387740,0.082238,60768.0,60761.0,0.3608]
[1723641387943,0.3608,60771.0,60761.0,0.3608]
[1723641388146,0.3608,60771.0,60756.0,0.3608]
[1723641388147,0.3608,60766.0,60756.0,0.3608]
[1723641388644,0.082245,60762.0,60760.0,0.00024686]
[1723641389142,0.42491991,60771.0,60760.0,0.00024686]
[1723641389143,0.082246,60761.0,60760.0,0.00024686]
[1723641391444,0.082246,60761.0,60756.0,0.3608]
[1723641391445,0.082251,60757.0,60756.0,0.3608]
[1723641391634,0.443051,60757.0,60744.0,0.1183]
[1723641391833,0.082264,60749.0,60744.0,0.1183]
[1723641392042,0.082269,60744.0,60743.0,0.3608]
[1723641392342,0.082269,60744.0,60737.0,0.6116]
[1723641392343,0.082277,60738.0,60737.0,0.3608]
[1723641392744,0.576197,60738.0,60737.0,0.3608]
[1723641393041,1.058474,60738.0,60737.0,0.35089043]
[1723641393248,0.082285,60732.0,60731.0,0.00024686]
[1723641394545,0.00813338,60739.0,60731.0,0.00024686]
[1723641394840,0.00024686,60744.0,60738.0,0.3608]
[1723641395046,0.00829645,60744.0,60738.0,0.3608]
[1723641395244,0.08251686,60744.0,60738.0,0.3608]
[1723641395446,0.082275,60740.0,60738.0,0.3608]
[1723641395643,0.00024686,60744.0,60738.0,0.3608]
[1723641395845,0.00024686,60744.0,60743.0,0.3608]
[1723641396643,0.00024686,60744.0,60732.0,0.1252]
[1723641396644,0.082285,60732.0,60728.0,0.3608]
[1723641396949,0.00024686,60744.0,60728.0,0.3608]
[1723641397144,0.08228,60736.0,60735.0,0.3608]
[1723641397642,0.08251686,60744.0,60735.0,0.3608]
[1723641397643,0.00024686,60744.0,60735.0,0.3608]
[1723641397841,0.09065041,60744.0,60735.0,0.3608]
[1723641398041,0.00838041,60744.0,60742.0,0.3608]
[1723641399140,0.00024686,60744.0,60742.0,0.3608]
[1723641399647,0.00024686,60744.0,60743.0,0.08227]
[1723641400037,0.00024686,60744.0,60742.0,0.3608]
[1723641400848,0.08227,60743.0,60742.0,0.3608]
[1723641401236,0.00024686,60744.0,60742.0,0.3608]
[1723641401440,0.08227,60743.0,60742.0,0.3608]
[1723641401951,0.08251686,60744.0,60742.0,0.3608]
[1723641402145,0.00024686,60744.0,60742.0,0.3608]
[1723641402650,0.00024686,60744.0,60743.0,0.49388]
[1723641402860,0.00024686,60744.0,60742.0,0.7608]
[1723641403049,0.00024686,60744.0,60743.0,0.49388]
[1723641403344,0.23052,60769.0,60743.0,0.49388]
[1723641403345,0.0069752,60757.0,60743.0,0.49388]
[1723641403557,0.082252,60757.0,60751.0,0.3608]
[1723641403845,0.36789804,60761.0,60751.0,0.3608]
[1723641404237,0.36789804,60761.0,60742.0,0.3608]
[1723641404238,0.082258,60752.0,60749.0,0.3608]
[1723641404449,0.082261,60750.0,60749.0,0.3608]
[1723641404847,0.082255,60755.0,60749.0,0.3608]
[1723641405052,0.082259,60752.0,60749.0,0.3608]
[1723641405249,0.082266,60746.0,60745.0,0.00024686]
[1723641405947,0.3608,60756.0,60745.0,0.00024686]
[1723641405948,0.082261,60750.0,60745.0,0.00024686]
[1723641406150,0.082266,60746.0,60745.0,0.00024686]
[1723641407449,0.082257,60753.0,60745.0,0.00024686]
[1723641407644,0.08249686,60758.0,60749.0,0.3608]
[1723641407843,0.082254,60755.0,60754.0,0.3608]
[1723641408550,0.082261,60750.0,60749.0,0.3608]
[1723641408849,0.082256,60754.0,60749.0,0.3608]
[1723641409055,0.00743623,60758.0,60750.0,0.08226]
[1723641409251,0.00743623,60758.0,60754.0,0.3608]
[1723641409753,0.00024686,60758.0,60754.0,0.3608]
[1723641410447,0.082253,60756.0,60754.0,0.3608]
[1723641410754,0.082254,60755.0,60754.0,0.3608]
[1723641411050,0.082256,60754.0,60747.0,0.3608]
[1723641411253,0.06441197,60753.0,60747.0,0.3608]
[1723641411548,0.082264,60748.0,60747.0,0.3608]
[1723641411740,0.16240589,60754.0,60747.0,0.3608]
[1723641411741,0.06441197,60750.0,60747.0,0.3608]
[1723641411946,0.06441197,60751.0,60748.0,0.3608]
[1723641412147,0.06441197,60752.0,60748.0,0.3608]
[1723641412344,0.06441197,60753.0,60748.0,0.3608]
[1723641412544,0.08039675,60758.0,60748.0,0.3608]
[1723641412545,0.06441197,60757.0,60748.0,0.85464]
[1723641412846,0.00024686,60758.0,60756.0,0.3608]
[1723641413247,0.00024686,60758.0,60757.0,0.568052]
[1723641413448,0.00024686,60758.0,60757.0,0.695952]
[1723641413653,0.06451735,60763.0,60759.0,0.082248]
[1723641413845,0.06451735,60763.0,60762.0,0.3608]
[1723641414154,0.06451735,60764.0,60762.0,0.3608]
[1723641414555,0.06451735,60765.0,60762.0,0.3608]
[1723641414947,0.06451735,60765.0,60762.0,0.443045]
[1723641415350,0.06451735,60765.0,60762.0,0.3608]
[1723641415644,0.06451735,60766.0,60762.0,0.443045]
[1723641415841,0.06451735,60766.0,60763.0,0.082243]
[1723641416356,0.06451735,60768.0,60765.0,0.3608]
[1723641416856,0.08224,60766.0,60765.0,0.3608]
[1723641417153,0.06451735,60768.0,60765.0,0.3608]
[1723641417658,0.00024686,60770.0,60768.0,0.082237]
[1723641418156,0.00024686,60770.0,60769.0,0.082236]
[1723641418451,0.00024686,60770.0,60769.0,0.443036]
[1723641418651,0.00024686,60770.0,60769.0,1.336716]
[1723641419357,0.082225,60777.0,60773.0,0.082229]
[1723641419559,0.082225,60777.0,60776.0,0.3608]
[1723641421157,0.164451,60777.0,60776.0,0.3608]
[1723641421358,0.22884501,60777.0,60776.0,0.3608]
[1723641421545,0.22884501,60777.0,60776.0,0.34853143]
[1723641421546,0.164451,60777.0,60776.0,0.34853143]
[1723641421748,0.082233,60771.0,60770.0,0.00024686]
[1723641422361,0.164466,60771.0,60770.0,0.00024686]
[1723641422550,0.082243,60764.0,60763.0,0.3608]
[1723641422862,0.43596825,60764.0,60746.0,0.1194]
[1723641423065,0.082263,60750.0,60746.0,0.1194]
[1723641423252,0.082256,60754.0,60749.0,0.3608]
[1723641423564,0.06454274,60755.0,60749.0,0.3608]
[1723641423750,0.07162821,60755.0,60749.0,0.3608]
[1723641423953,0.08226,60751.0,60749.0,0.3608]
[1723641424361,0.06454274,60750.0,60749.0,0.3608]
[1723641424565,0.08226,60751.0,60749.0,0.3608]
[1723641424749,0.06464711,60750.0,60749.0,0.3608]
[1723641425354,0.08765372,60755.0,60749.0,0.443063]
[1723641425561,0.06461282,60752.0,60749.0,0.3608]
[1723641426167,0.164524,60750.0,60749.0,0.3608]
[1723641426371,0.082262,60750.0,60749.0,0.3608]
[1723641426666,0.082256,60754.0,60749.0,0.3608]
[1723641426868,0.3608,60756.0,60749.0,0.3608]
[1723641427963,0.00742337,60758.0,60755.0,0.3608]
[1723641428663,0.082252,60757.0,60755.0,0.3608]
[1723641428862,0.00742337,60758.0,60755.0,0.3608]
[1723641429068,0.00024686,60758.0,60755.0,0.3608]
[1723641429569,0.00024686,60758.0,60756.0,0.082253]
[1723641429958,0.00024686,60758.0,60755.0,0.3608]
[1723641431560,0.082262,60750.0,60749.0,0.3608]
[1723641432672,0.082264,60749.0,60745.0,0.00024686]
[1723641432970,0.082265,60748.0,60745.0,0.00024686]
[1723641433168,0.443058,60753.0,60745.0,0.00024686]
[1723641433476,0.00024686,60758.0,60748.0,0.3608]
[1723641433675,0.00024686,60758.0,60754.0,0.3608]
[1723641434271,0.00024686,60758.0,60755.0,0.49376]
[1723641434471,0.00024686,60758.0,60756.0,0.082253]
[1723641434662,0.00024686,60758.0,60757.0,0.082252]
[1723641435161,0.00024686,60758.0,60757.0,0.49376]
[1723641435568,0.00024686,60758.0,60757.0,0.976012]
[1723641435970,0.08249786,60758.0,60757.0,0.4]
[1723641436165,0.082252,60757.0,60756.0,0.3608]
[1723641436364,0.082266,60747.0,60745.0,0.00024686]
[1723641437575,0.4164,60757.0,60746.0,0.61804]
[1723641437773,0.082253,60757.0,60750.0,0.3608]
[1723641438276,0.08226,60751.0,60750.0,0.3608]
[1723641438974,0.082266,60747.0,60746.0,0.1242]
[1723641439473,0.3608,60753.0,60746.0,0.1242]
[1723641439872,0.082264,60748.0,60746.0,0.1242]
[1723641440572,0.082262,60750.0,60746.0,0.1242]
[1723641440768,0.082264,60749.0,60746.0,0.1242]
[1723641441073,0.082265,60748.0,60746.0,0.1242]
[1723641441268,0.45007586,60753.0,60746.0,0.1242]
[1723641441462,0.00024686,60758.0,60748.0,0.3608]
[1723641441661,0.00024686,60758.0,60755.0,0.3608]
[1723641441869,0.00024686,60758.0,60756.0,0.0559]
[1723641442672,0.08249786,60758.0,60756.0,0.0559]
[1723641442866,0.082252,60757.0,60756.0,0.0559]
[1723641443066,0.082263,60749.0,60748.0,0.3608]
[1723641443568,0.08226,60751.0,60746.0,0.1242]
[1723641443875,0.082262,60750.0,60746.0,0.1242]
[1723641444065,0.3608,60755.0,60746.0,0.1242]
[1723641444261,0.082261,60751.0,60746.0,0.1242]
[1723641444970,0.00024686,60758.0,60750.0,0.3608]
[1723641445181,0.00024686,60758.0,60754.0,0.082256]
[1723641445365,0.00024686,60758.0,60751.0,0.1138]
[1723641445565,0.3608,60779.0,60757.0,0.3608]
[1723641445771,0.3608,60779.0,60766.0,0.3608]
[1723641445970,0.082259,60752.0,60751.0,0.3608]
[1723641446368,0.3608,60756.0,60746.0,0.485]
[1723641446369,0.082266,60747.0,60746.0,0.485]
[1723641446579,0.437766,60747.0,60746.0,0.485]
[1723641447269,0.082261,60751.0,60746.0,0.485]
[1723641447775,0.00024686,60753.0,60746.0,0.485]
[1723641448073,0.082266,60747.0,60746.0,0.485]
[1723641448375,0.08226,60751.0,60746.0,0.485]
[1723641449273,0.00715803,60753.0,60746.0,0.485]
[1723641449478,0.00024686,60753.0,60752.0,0.3608]
[1723641449667,0.00024686,60753.0,60746.0,0.485]
[1723641450772,0.082261,60751.0,60746.0,0.485]
[1723641451172,0.082262,60750.0,60746.0,0.485]
[1723641451666,0.00024686,60753.0,60746.0,0.485]
[1723641451875,0.00024686,60753.0,60752.0,0.3608]
[1723641452075,0.00024686,60753.0,60746.0,0.568146]
[1723641452271,0.00024686,60753.0,60746.0,0.567266]
[1723641452471,0.082259,60752.0,60746.0,0.485]
[1723641452878,0.00024686,60753.0,60746.0,0.485]
[1723641453173,0.00024686,60753.0,60752.0,0.3608]
[1723641453379,0.00024686,60753.0,60747.0,0.082265]
[1723641453778,0.00024686,60753.0,60746.0,0.485]
[1723641453983,0.00024686,60753.0,60752.0,0.3608]
[1723641454178,0.36104686,60753.0,60746.0,0.485]
[1723641454383,0.082265,60747.0,60746.0,0.485]
[1723641454783,0.082261,60751.0,60746.0,0.485]
[1723641455983,0.082263,60749.0,60746.0,0.485]
[1723641456478,0.082265,60747.0,60746.0,0.1242]
[1723641456784,0.082265,60748.0,60746.0,0.1242]
[1723641457375,0.3608,60751.0,60746.0,0.1242]
[1723641457881,0.35574686,60753.0,60746.0,0.1242]
[1723641458276,0.00024686,60753.0,60747.0,0.08210001]
[1723641458586,0.00024686,60753.0,60748.0,0.28970173]
[1723641458886,0.00024686,60753.0,60748.0,0.08210001]
[1723641458887,0.08953126,60753.0,60748.0,0.08210001]
[1723641459085,0.082261,60751.0,60749.0,0.08210001]
[1723641459274,0.082262,60750.0,60747.0,0.08210001]
[1723641459478,0.00730715,60753.0,60752.0,0.082259]
[1723641459677,0.00024686,60753.0,60752.0,0.16436343]
[1723641459882,0.00024686,60753.0,60752.0,0.12532602]
[1723641460182,0.00024686,60753.0,60752.0,0.20758502]
[1723641460786,0.00024686,60753.0,60752.0,1.46218502]
[1723641461084,0.082243,60764.0,60752.0,1.5222218]
[1723641461284,0.082243,60764.0,60749.0,0.3608]
[1723641461285,0.00691965,60765.0,60762.0,0.08210186]
[1723641461486,0.3608,60781.0,60771.0,0.082232]
[1723641461676,0.16445,60777.0,60776.0,0.06565025]
[1723641461875,0.437721,60780.0,60773.0,0.06565025]
[1723641461876,0.082228,60775.0,60773.0,0.06565025]
[1723641462079,0.3608,60774.0,60770.0,0.00024686]
[1723641462277,0.00709829,60781.0,60772.0,0.3608]
[1723641462479,0.082219,60782.0,60778.0,0.06564299]
[1723641462778,0.082221,60780.0,60779.0,0.12074299]
[1723641463483,0.3555,60788.0,60779.0,0.0551]
[1723641463484,0.00711482,60783.0,60779.0,0.0551]
[1723641463679,0.00711482,60783.0,60779.0,0.48147702]
[1723641463680,0.08237404,60783.0,60779.0,0.48147702]
[1723641463880,0.00015704,60783.0,60782.0,0.082218]
[1723641464080,0.3608,60799.0,60785.0,0.082213]
[1723641464283,0.3608,60799.0,60788.0,0.3608]
[1723641464284,0.082201,60795.0,60788.0,0.3608]
[1723641464679,0.3608,60794.0,60788.0,0.3608]
[1723641464881,0.082206,60792.0,60788.0,0.3608]
[1723641465185,0.3608,60808.0,60788.0,0.3608]
[1723641465386,0.3608,60808.0,60797.0,0.442998]
[1723641465387,0.082187,60806.0,60797.0,0.442998]
[1723641465582,0.08940275,60810.0,60799.0,0.082195]
[1723641465785,0.3608,60812.0,60799.0,0.082195]
[1723641466089,0.3608,60812.0,60800.0,0.082194]
[1723641466090,0.3608,60807.0,60800.0,0.082194]
[1723641466383,0.36830399,60812.0,60804.0,0.3608]
[1723641466589,0.00750399,60812.0,60811.0,0.3608]
[1723641466791,0.3608,60828.0,60817.0,0.08217]
[1723641466983,0.3608,60828.0,60820.0,0.082166]
[1723641467180,0.082157,60827.0,60819.0,0.3608]
[1723641467582,0.00722598,60828.0,60826.0,0.3608]
[1723641467780,0.082155,60829.0,60827.0,0.0527]
[1723641467976,0.082151,60832.0,60827.0,0.0527]
[1723641468488,0.082152,60831.0,60827.0,0.0527]
[1723641468887,0.082147,60835.0,60827.0,0.0527]
[1723641469089,0.082147,60835.0,60831.0,0.3608]
[1723641469387,0.36796143,60840.0,60831.0,0.3608]
[1723641469388,0.082141,60839.0,60831.0,0.3608]
[1723641469594,0.36796143,60840.0,60831.0,0.3608]
[1723641469789,0.082144,60837.0,60831.0,0.3608]
[1723641469990,0.36796143,60840.0,60832.0,0.0521]
[1723641470487,0.082142,60838.0,60832.0,0.0521]
[1723641470686,0.082144,60837.0,60832.0,0.0521]
[1723641470886,0.36796143,60840.0,60832.0,0.0521]
[1723641471086,0.00716143,60840.0,60837.0,0.082143]
[1723641471388,0.3608,60853.0,60836.0,0.3608]
[1723641471586,0.08212,60855.0,60836.0,0.3608]
[1723641471587,0.082121,60854.0,60843.0,0.3608]
[1723641471799,0.3608,60859.0,60851.0,0.3608]
[1723641471988,0.082119,60856.0,60852.0,0.0561]
[1723641472185,0.082119,60856.0,60853.0,0.0544]
[1723641472382,0.36809365,60859.0,60853.0,0.0544]
[1723641472882,0.3608,60854.0,60848.0,0.00024664]
[1723641473186,0.3608,60854.0,60803.0,0.04850969]
[1723641473187,0.082147,60835.0,60834.0,0.0544]
[1723641473388,0.08213,60848.0,60834.0,0.0544]
[1723641473389,0.3608,60839.0,60834.0,0.0544]
[1723641473883,0.082132,60846.0,60834.0,0.0544]
[1723641474290,0.3608,60849.0,60837.0,0.082144]
[1723641474588,0.00024592,60846.0,60836.0,0.3608]
[1723641474785,0.08237792,60846.0,60836.0,0.3608]
[1723641474994,0.00024592,60846.0,60837.0,0.3608]
[1723641475692,0.00024592,60846.0,60839.0,0.082141]
[1723641475892,0.00024592,60846.0,60837.0,0.3608]
[1723641476590,0.082139,60841.0,60837.0,0.3608]
[1723641476893,0.00024592,60846.0,60837.0,0.3608]
[1723641477095,0.00024592,60846.0,60842.0,0.3608]
[1723641477792,0.082139,60841.0,60837.0,0.3608]
[1723641477995,0.00024592,60846.0,60837.0,0.3608]
[1723641478292,0.00024592,60846.0,60838.0,0.0519]
[1723641478900,0.082141,60840.0,60838.0,0.0519]
[1723641479191,0.082142,60839.0,60838.0,0.0519]
[1723641479393,0.082143,60838.0,60837.0,0.3608]
[1723641480588,0.082137,60843.0,60837.0,0.3608]
[1723641480788,0.00024592,60846.0,60837.0,0.3608]
[1723641480985,0.00024592,60846.0,60842.0,0.3608]
[1723641481199,0.08237892,60846.0,60837.0,0.3608]
[1723641481888,0.00024592,60846.0,60837.0,0.3608]
[1723641482092,0.00024592,60846.0,60839.0,0.08214]
[1723641482400,0.00024592,60846.0,60837.0,0.3608]
[1723641482601,0.00024592,60846.0,60845.0,0.3608]
[1723641482791,0.00024592,60846.0,60845.0,0.935974]
[1723641483093,0.442908,60864.0,60845.0,0.3608]
[1723641483288,0.442908,60864.0,60844.0,0.0556]
[1723641483289,0.082133,60846.0,60844.0,0.0556]
[1723641483485,0.3608,60849.0,60844.0,0.0556]
[1723641483691,0.082127,60851.0,60844.0,0.0556]
[1723641483897,0.3608,60852.0,60844.0,0.0556]
[1723641484283,0.3608,60853.0,60844.0,0.0556]
[1723641484484,0.3608,60853.0,60843.0,0.3608]
[1723641484888,0.442923,60853.0,60843.0,0.3608]
[1723641485297,0.00746875,60857.0,60851.0,0.3608]
[1723641485495,0.3608,60864.0,60851.0,0.3608]
[1723641485496,0.082112,60862.0,60851.0,0.3608]
[1723641485684,0.36824602,60864.0,60852.0,0.0554]
[1723641485889,0.082112,60862.0,60852.0,0.0554]
[1723641486092,0.082114,60860.0,60852.0,0.0554]
[1723641486293,0.082115,60859.0,60852.0,0.0554]
[1723641486495,0.45035502,60864.0,60852.0,0.0554]
[1723641486796,0.36824602,60864.0,60854.0,0.08212]
[1723641487101,0.36824602,60864.0,60852.0,0.1076]
[1723641487600,0.36824602,60864.0,60850.0,0.00024664]
[1723641487601,0.3608,60853.0,60850.0,0.00024664]
[1723641487896,0.082125,60851.0,60850.0,0.00024664]
[1723641488104,0.082125,60851.0,60850.0,0.0001584]
[1723641488396,0.442923,60853.0,60850.0,0.0001584]
[1723641488592,0.082125,60851.0,60850.0,0.0001584]
[1723641489000,0.08212,60855.0,60850.0,0.0001584]
[1723641489298,0.082125,60851.0,60850.0,0.0001584]
[1723641489893,0.00744235,60855.0,60850.0,0.3609584]
[1723641490098,0.08212,60855.0,60850.0,0.3609584]
[1723641490391,0.082125,60851.0,60850.0,0.0001584]
[1723641490798,0.442925,60851.0,60850.0,0.0001584]
[1723641491496,0.06501811,60853.0,60850.0,0.0001584]
[1723641491699,0.06501811,60855.0,60850.0,0.0001584]
[1723641491895,0.08212,60855.0,60850.0,0.0001584]
[1723641492096,0.0724505,60857.0,60850.0,0.0001584]
[1723641492391,0.06501811,60855.0,60850.0,0.0822844]
[1723641492602,0.00743239,60857.0,60852.0,0.3608]
[1723641493290,0.00743239,60857.0,60853.0,0.3608]
[1723641493496,8.824e-05,60857.0,60853.0,0.497722]
[1723641493999,8.824e-05,60857.0,60854.0,0.082121]
[1723641494415,8.824e-05,60857.0,60853.0,0.4156]
[1723641495393,8.824e-05,60857.0,60855.0,0.04850969]
[1723641495797,8.824e-05,60857.0,60855.0,0.05674448]
[1723641496098,0.0522,60879.0,60856.0,0.61805364]
[1723641496299,0.082092,60876.0,60875.0,0.3608]
[1723641496801,0.00742895,60879.0,60875.0,0.3608]
[1723641497100,0.0497,60890.0,60875.0,0.42612174]
[1723641497303,0.082085,60881.0,60880.0,0.04905515]
[1723641497498,0.36826705,60888.0,60874.0,0.3608]
[1723641497705,0.36826705,60888.0,60877.0,0.04905515]
[1723641497901,0.45034205,60888.0,60877.0,0.04905515]
[1723641498109,0.45034205,60888.0,60879.0,0.04905515]
[1723641498300,0.45034205,60888.0,60877.0,0.13114515]
[1723641498606,0.36826705,60888.0,60878.0,0.13114415]
[1723641499108,0.36826705,60888.0,60878.0,0.082089]
[1723641499295,0.00746705,60888.0,60880.0,0.40985515]
[1723641499496,0.3608,60903.0,60886.0,0.3608]
[1723641499699,0.082064,60897.0,60886.0,0.3608]
[1723641500008,0.3608,60890.0,60877.0,0.04905515]
[1723641500302,0.3608,60884.0,60875.0,0.40985515]
[1723641500499,0.082088,60879.0,60875.0,0.3608]
[1723641500710,0.082082,60883.0,60877.0,0.00024644]
[1723641500903,0.3608,60884.0,60877.0,0.00024644]
[1723641501301,0.082081,60884.0,60877.0,0.00024644]
[1723641501492,0.082075,60888.0,60880.0,0.3608]
[1723641501696,0.06501811,60894.0,60881.0,0.082084]
[1723641501697,0.3608,60890.0,60881.0,0.082084]
[1723641501906,0.3608,60890.0,60881.0,0.0522]
[1723641502214,0.3608,60890.0,60882.0,0.082083]
[1723641502706,0.082071,60892.0,60882.0,0.082083]
[1723641502907,0.3681752,60894.0,60880.0,0.3608]
[1723641502908,0.3608,60887.0,60880.0,0.3608]
[1723641503104,0.0073752,60894.0,60883.0,0.3608]
[1723641503296,0.3608,60894.0,60883.0,0.3608]
[1723641503496,0.082085,60882.0,60879.0,0.0527]
[1723641503701,0.3608,60889.0,60877.0,0.00024644]
[1723641503902,0.082089,60878.0,60877.0,0.00024644]
[1723641504105,0.486876,60888.0,60877.0,0.00024644]
[1723641504309,0.131376,60888.0,60877.0,0.00024644]
[1723641504704,0.082089,60878.0,60877.0,0.00024644]
[1723641504905,0.164178,60878.0,60877.0,0.00024644]
[1723641505413,0.082101,60869.0,60868.0,0.0501]
[1723641506303,0.082114,60860.0,60855.0,0.3608]
[1723641506507,0.3608,60871.0,60849.0,0.0501]
[1723641506508,0.3608,60862.0,60849.0,0.0501]
[1723641506708,0.3608,60854.0,60849.0,0.0501]
[1723641507005,0.3555,60865.0,60851.0,0.00024644]
[1723641507006,0.00024574,60864.0,60851.0,0.00024644]
[1723641507311,0.007615,60864.0,60851.0,0.00024644]
[1723641507500,0.00024574,60864.0,60853.0,0.3608]
[1723641507698,0.3608,60863.0,60853.0,0.3608]
[1723641507907,0.082115,60859.0,60853.0,0.3608]
[1723641508100,0.00764943,60864.0,60853.0,0.3608]
[1723641508303,0.00024574,60864.0,60861.0,0.442912]
[1723641509315,0.082091,60877.0,60863.0,0.3608]
[1723641509519,0.3608,60874.0,60868.0,0.3608]
[1723641509705,0.3608,60874.0,60866.0,0.0516]
[1723641510011,0.082101,60870.0,60866.0,0.0516]
[1723641510207,0.3608,60874.0,60866.0,0.0516]
[1723641510519,0.082108,60864.0,60863.0,0.3608]
[1723641511212,0.082103,60868.0,60863.0,0.3608]
[1723641511412,0.3608,60874.0,60863.0,0.3608]
[1723641511616,0.3608,60874.0,60862.0,0.00024644]
[1723641511617,0.7216,60868.0,60862.0,0.00024644]